Cogmind - Beta 14 @@@ ROGUE MODE // 2024.11.20 @ 13:36:00 Player: skye Result: Destroyed by D-53 Grenadier with Mini Grenade Launcher Performance ------------- Evolutions (0) 0 Regions Visited (4) 800 Robots Destroyed (11) 55 Value Destroyed (307) 307 Prototype IDs (25) 500 Alien Tech Used (0) 0 Bonus (300) 300 TOTAL SCORE: 1962 Bonus ------- Aligned with FarCom 300 Cogmind --------- Core Integrity 0/250 Matter 142/300 Energy 113/250 System Corruption 2% Temperature Cool (0) Movement Treading (240) Ox1 Location -9/Mines Parts ------- > --- POWER (1) -------- Ion Engine > --- PROPULSION (2) --- Light Treads > --- UTILITY (2) ------ Small Storage Unit Sensor Array > --- WEAPON (2) ------- Latent Energy Streamer Grenade Launcher > --- INVENTORY (8) ---- Structural Scanner Targeting Computer Light Armor Plating Medium Laser Assault Rifle Light Assault Rifle Mining Laser Peak State ------------ > --- POWER ------------ Light Nuclear Core > --- PROPULSION ------- Light Treads Light Treads > --- UTILITY ---------- Small Storage Unit Sensor Array > --- WEAPON ----------- Latent Energy Streamer Assault Rifle > --- INVENTORY -------- Ion Engine Structural Scanner Targeting Computer Light Armor Plating Medium Laser Light Assault Rifle Grenade Launcher Mining Laser [Rating: 18] Favorites ----------- Power Ion Engine Engine Ion Engine Power Core Light Nuclear Core Propulsion Light Treads Treads Light Treads Leg Aluminum Leg Utility Small Storage Unit Device Sensor Array Storage Small Storage Unit Weapon Medium Laser Energy Gun Medium Laser Energy Cannon Latent Energy Streamer Ballistic Gun Assault Rifle Launcher Grenade Launcher Build | -11 -10 -10 -10 -9 ------- Run | Yrd Mat Min Exi Min Slots Evolved . | . . . . . Power . | . . . . . Propulsion . | . . . . . Utility . | . . . . . Weapon . | . . . . . Parts Attached 12 | . 7 1 1 3 Power 5 | . 3 1 . 1 Engine 4 | . 3 . . 1 Core 1 | . . 1 . . Reactor . | . . . . . Propulsion 3 | . 2 . 1 . Treads 3 | . 2 . 1 . Leg . | . . . . . Wheel . | . . . . . Hover . | . . . . . Flight . | . . . . . Utility 1 | . 1 . . . Device 1 | . 1 . . . Storage . | . . . . . Processor . | . . . . . Hackware . | . . . . . Protection . | . . . . . Artifact . | . . . . . Weapon 3 | . 1 . . 2 Energy Gun . | . . . . . Energy Cannon 1 | . . . . 1 Ballistic Gun 1 | . 1 . . . Ballistic Cannon . | . . . . . Launcher 1 | . . . . 1 Special Weapon . | . . . . . Impact Weapon . | . . . . . Slashing Weapon . | . . . . . Piercing Weapon . | . . . . . Special Melee Weapon . | . . . . . Unidentified Prototypes . | . . . . . Corrupted Parts 1 | . . 1 . . System Corruption 2 | . . 2 . . Parts Lost 3 | . 1 . . 2 Power 1 | . . . . 1 Propulsion 1 | . . . . 1 Utility . | . . . . . Weapon 1 | . 1 . . . Highest Loss Streak 2 | . 1 . . 2 To Critical Strikes . | . . . . . Average Slot Usage (%) 99 | . 98 100 100 96 Engine 7 | . 13 14 . 3 Core 6 | . . . 14 10 Treads 27 | . 28 28 28 24 Device 13 | . 13 14 14 14 Storage 14 | . 14 14 14 14 Energy Gun 15 | . 18 14 14 7 Ballistic Gun 12 | . 9 14 14 10 Peak Build Rating 18 | 6 8 9 10 18 Average Rating 8 | 6 7 8 9 12 On Entrance 7 | 6 6 8 9 10 Naked Turns . | . . . . . Heaviest Build 23 | 14 15 15 15 23 Greatest Support 40 | 20 40 40 40 40 Greatest Overweight (x) . | . . . . . Average Overweight (x) . | . . . . . Largest Inventory Capacity 8 | 8 8 8 8 8 Average Capacity 8 | 8 8 8 8 8 Most Carried 8 | 6 8 8 8 8 Average Carried 7 | 6 7 8 7 7 Final Capacity 8 | 8 8 8 8 8 Final Carried 8 | 6 8 8 8 7 Class Distribution -------------------- 99% | Mutant Dominant Class ---------------- Mutant | -10/Materials Mutant | -10/Mines Mutant | -10/Exiles Skirmisher | -9/Mines Resources | -11 -10 -10 -10 -9 ----------- Run | Yrd Mat Min Exi Min Matter Collected 322 | 200 113 9 . . Remotely . | . . . . . Salvage Created 308 | . 270 38 . . Parts 28 | . 23 5 . . Haulers Intercepted . | . . . . . Recyclers Shooed . | . . . . . Parts Field Recycled . | . . . . . Retrieved Matter . | . . . . . Parts Self-Destructed . | . . . . . Prevented . | . . . . . Kills | -11 -10 -10 -10 -9 ------- Run | Yrd Mat Min Exi Min Combat Hostiles Destroyed 9 | . 6 3 . . Guns 8 | . 5 3 . . AOE 1 | . 1 . . . Classes Destroyed 4 | . 3 1 . . Worker 1 | . 1 . . . Watcher 1 | . 1 . . . Swarmer 3 | . . 3 . . Grunt 6 | . 6 . . . Best Kill Streak 3 | . 3 3 . . Combat Bots Only 3 | . 3 3 . . Max Kills in Single Turn 2 | . 1 2 . . Gunslinging 1 | . . 1 . . Exploded 1 | . 1 . . . Melee . | . . . . . Uniques/NPCs Destroyed . | . . . . . Combat | -11 -10 -10 -10 -9 -------- Run | Yrd Mat Min Exi Min Hostile Shots Fired 56 | . 40 4 . 12 Missed 7 | . 7 . . . Damage Taken 988 | . 483 32 . 473 Core 288 | . 99 . . 189 Absorbed by Shields . | . . . . . Core Remaining (%) 100 | 100 . . . . Volleys Fired 40 | . 32 3 . 5 Largest 2 | . 2 2 . 1 Hottest 90 | . 90 70 . 30 Shots Fired 70 | . 59 6 . 5 Gun 67 | . 59 6 . 2 Cannon . | . . . . . Launcher 3 | . . . . 3 Special . | . . . . . Kinetic 20 | . 15 3 . 2 Thermal 30 | . 27 3 . . Explosive 3 | . . . . 3 Electromagnetic 17 | . 17 . . . Robot Hit Streak 6 | . 6 3 . 3 Robot Miss Streak 5 | . 5 1 . 1 Penetration Max . | . . . . . Secondary Targets 1 | . . 1 . . Max Gunslinging Chain 1 | . . 1 . . Shots Hit Robots 40 | . 33 4 . 3 Core Hits 30 | . 17 3 . 10 Critical Kills . | . . . . . Critical Parts Destroyed . | . . . . . Critical Strikes 1 | . . 1 . . Burn 1 | . . 1 . . Melee Attacks . | . . . . . Impact . | . . . . . Slashing . | . . . . . Piercing . | . . . . . Sneak Attacks . | . . . . . Combat Hostiles . | . . . . . Follow-up Attacks . | . . . . . Damage Inflicted 749 | . 602 49 . 98 Guns 488 | . 416 49 . 23 Cannons . | . . . . . Explosions 261 | . 186 . . 75 Melee . | . . . . . Ramming . | . . . . . Kinetic 177 | . 117 37 . 23 Thermal 406 | . 394 12 . . Explosive 75 | . . . . 75 Electromagnetic 91 | . 91 . . . Impact . | . . . . . Slashing . | . . . . . Piercing . | . . . . . Highest Corruption 2 | . . 2 2 2 Average Corruption 2 | . . 2 2 2 Corruption Purged . | . . . . . Corruption Blocked . | . . . . . Effects 16 | . . . 15 1 Message Errors 3 | . . . 3 . Matter Fused 9 | . . . 9 . Energy Discharges 3 | . . . 3 . Data Loss (major) 1 | . . . . 1 Overload Shots . | . . . . . Overflow Damage . | . . . . . Projectiles . | . . . . . Explosions . | . . . . . Melee . | . . . . . Knockbacks . | . . . . . Impact . | . . . . . Kinetic . | . . . . . Secondary . | . . . . . Self-Inflicted Damage 72 | . 72 . . . Shots 2 | . 2 . . . Rammed . | . . . . . Targets Rammed . | . . . . . Kicked . | . . . . . Crushed . | . . . . . Highest Temperature 369 | . 369 27 . . Average Temperature 103 | . 110 14 . . Received Heat Transfer 270 | . 270 . . . Effects 4 | . 4 . . . Energy Bleed 1 | . 1 . . . Interference 3 | . 3 . . . Siege Activations . | . . . . . Robots Corrupted . | . . . . . Combat Hostiles . | . . . . . Parts Fried . | . . . . . Impact Corruptions . | . . . . . Robots Melted . | . . . . . Combat Hostiles . | . . . . . Parts Melted . | . . . . . Heat Transferred 890 | . 779 111 . . Parts Sabotaged . | . . . . . Parts Stolen . | . . . . . Parts Stripped . | . . . . . Power Chain Reactions 2 | . 2 . . . Alert | -11 -10 -10 -10 -9 ------- Run | Yrd Mat Min Exi Min Peak Influence 288 | . 288 78 . 8 Initial 8 | . . 8 . . Average 80 | . 85 77 . . Maximum Alert Level 1 | . 1 . . . Low Security (%) 93 | 100 90 100 . 100 Level 1 6 | . 9 . . . Level 2 . | . . . . . Level 3 . | . . . . . Level 4 . | . . . . . Level 5 . | . . . . . High Security . | . . . . . Max Security . | . . . . . Squads Dispatched 1 | . 1 . . . Investigation . | . . . . . Extermination . | . . . . . Reinforcement 1 | . 1 . . . Assault . | . . . . . Garrison . | . . . . . Intercept . | . . . . . Searches Triggered . | . . . . . Construction Impeded . | . . . . . Haulers Reinforced . | . . . . . Active Scanning Responses . | . . . . . Cargo Convoy Interrupts . | . . . . . Stealth | -11 -10 -10 -10 -9 --------- Run | Yrd Mat Min Exi Min Distress Signals 2 | . 2 . . . Communications Jammed . | . . . . . Distress Signals . | . . . . . Times Spotted 17 | . 14 1 . 2 Peak Tracking Total 4 | . 4 1 . 2 Tactical Retreats 2 | . 2 . . . Traps | -11 -10 -10 -10 -9 ------- Run | Yrd Mat Min Exi Min Traps Triggered 1 | . 1 . . . Indirectly . | . . . . . Trap Hack Attempts . | . . . . . Triggered . | . . . . . Disarmed . | . . . . . Reprogrammed . | . . . . . Reused . | . . . . . Traps Extracted . | . . . . . Installed . | . . . . . Triggered . | . . . . . Machines | -11 -10 -10 -10 -9 ---------- Run | Yrd Mat Min Exi Min Machines Disabled 4 | . 4 . . . Max in Single Turn 2 | . 2 . . . Machines Repaired . | . . . . . Machines Dismantled . | . . . . . Machines Sabotaged . | . . . . . Overloaded Fab Kills . | . . . . . Hacking | -11 -10 -10 -10 -9 --------- Run | Yrd Mat Min Exi Min Machines Accessed 11 | . 6 . 5 . Terminals 6 | . 6 . . . Fabricators . | . . . . . Repair Stations . | . . . . . Recycling Units . | . . . . . Scanalyzers . | . . . . . Garrison Access . | . . . . . Total Hacks 65 | . 15 . 50 . Successful 58 | . 8 . 50 . Failed 7 | . 7 . . . Catastrophic 1 | . 1 . . . Database Lockouts . | . . . . . Manual 17 | . 14 . 3 . Terminals 15 | . 15 . . . Fabricators . | . . . . . Repair Stations . | . . . . . Recycling Units . | . . . . . Scanalyzers . | . . . . . Garrison Access . | . . . . . Terminal Hacks 54 | . 4 . 50 . Record 49 | . . . 49 . Part Schematic 1 | . 1 . . . Prototype ID Bank 1 | . 1 . . . Level Access Points 1 | . 1 . . . Branch Access Points 1 | . 1 . . . Derelict Proto ID Bank 1 | . . . 1 . Fabricator Hacks . | . . . . . Repair Station Hacks . | . . . . . Recycling Unit Hacks . | . . . . . Scanalyzer . | . . . . . Garrison Access Hacks . | . . . . . Unauthorized Hacks 4 | . 4 . . . Terminals 4 | . 4 . . . Botnet 4 | . 4 . . . Fabricators . | . . . . . Repair Stations . | . . . . . Recycling Units . | . . . . . Scanalyzers . | . . . . . Garrison Access . | . . . . . Data Cores Recovered . | . . . . . Used . | . . . . . Hacking Detections 6 | . 6 . . . Full Trace Events . | . . . . . Feedback Events . | . . . . . Feedback Blocked . | . . . . . Robot Schematics Acquired . | . . . . . Robots Built . | . . . . . Authchips . | . . . . . Time . | . . . . . Total Robot Build Rating . | . . . . . Part Schematics Acquired 1 | . 1 . . . Parts Built . | . . . . . Authchips . | . . . . . Time . | . . . . . Total Part Build Rating . | . . . . . Parts Repaired . | . . . . . Time . | . . . . . Parts Recycled . | . . . . . Recycled Matter . | . . . . . Retrieved Matter . | . . . . . Retrieved Components . | . . . . . Parts Scanalyzed . | . . . . . Part Schematics Acquired . | . . . . . Parts Damaged . | . . . . . Bothacking | -11 -10 -10 -10 -9 ------------ Run | Yrd Mat Min Exi Min Used RIF Installer . | . . . . . Robots Hacked . | . . . . . Non-combat . | . . . . . Combat . | . . . . . Robot Hacks Applied . | . . . . . Relay Couplers Released . | . . . . . Fabnet Peak Effective % . | . . . . . Robots Rewired . | . . . . . Allies Hacked . | . . . . . Hacks Repelled . | . . . . . Allies | -11 -10 -10 -10 -9 -------- Run | Yrd Mat Min Exi Min Total Allies . | . . . . . Largest Group . | . . . . . Highest-Rated Group . | . . . . . Highest-Rated Ally . | . . . . . Total Orders . | . . . . . Ally Attacks . | . . . . . Total Damage . | . . . . . Kills . | . . . . . Allies Corrupted . | . . . . . Allies Melted . | . . . . . Intel | -11 -10 -10 -10 -9 ------- Run | Yrd Mat Min Exi Min Robot Analysis Total . | . . . . . Derelict Logs Recovered 1 | . . 1 . . Drone Launches . | . . . . . Drone Recoveries . | . . . . . Exploration | -11 -10 -10 -10 -9 ------------- Run | Yrd Mat Min Exi Min Turns Passed 2559 | 3 970 341 1211 34 Spaces Moved 1495 | 3 520 204 755 13 Core . | . . . . . Treads 1492 | . 520 204 755 13 Legs 3 | 3 . . . . Wheels . | . . . . . Hover . | . . . . . Flight . | . . . . . Fastest Speed 120 | 120 160 160 160 160 Average Speed 159 | 120 160 160 160 160 Slowest Speed 160 | 120 160 160 160 160 Overloaded Moves . | . . . . . Propulsion Burnouts . | . . . . . Robots Hopped . | . . . . . Cave-ins Triggered . | . . . . . Exploration Rate (%) 42 | 2 58 48 92 13 Regions Visited 4 Branch Regions 3 Pre-discovered Areas 1 | . . . 1 . Known Exits Taken 1 | . 1 . . . Unknown Exits Taken 3 | 1 . 1 1 . Scrap Searched 3 | . . 3 . . Spaces Dug . | . . . . . Terrain Destroyed 56 | . 45 . . 11 Melee . | . . . . . Projectile . | . . . . . AOE 56 | . 45 . . 11 Terrain Rammed . | . . . . . Walls Destroyed . | . . . . . Machines Disabled . | . . . . . Actions | -11 -10 -10 -10 -9 --------- Run | Yrd Mat Min Exi Min Total 1597 | 2 603 213 758 21 Wait 26 | . 24 2 . . Move 1491 | 2 519 203 754 13 Hop . | . . . . . Pick Up 14 | . 11 2 1 . Fast Attach 2 | . 2 . . . Attach 2 | . 1 . . 1 Detach . | . . . . . Swap 8 | . 4 1 1 2 Drop 13 | . 10 2 1 . Fire 40 | . 32 3 . 5 Melee . | . . . . . Ram . | . . . . . Kick . | . . . . . Crush . | . . . . . Escape Stasis . | . . . . . Rewire 1 | . . . 1 . Trap . | . . . . . Miscellaneous . | . . . . . Route ------- -11/Scrapyard -10/Materials (discovered 5 exits: *Mat x3 / *Min x2) -10/Mines -10/Exiles (discovered 2 exits: [*Min x2]) -9/Mines History --------- Turn | Location | Event 1 | -11/Scrapyard | Discovered new exit (range 1) 4 | -11/Scrapyard | Entered Materials 145 | -10/Materials | Discovered new exit (range 15) 324 | -10/Materials | Build established: Mutant 452 | -10/Materials | Identified exit to Materials 918 | -10/Materials | Identified exit to Mines 974 | -10/Materials | Entered Mines 1010 | -10/Mines | Met a Derelict bent on vengeance 1305 | -10/Mines | Deemed a non-threat by the Exiles lab entrance 1305 | -10/Mines | Discovered new exit (range 5) 1315 | -10/Mines | Entered Exiles 1341 | -10/Exiles | Discovered new exit (range 15) 1365 | -10/Exiles | Met 8R-AWN 1399 | -10/Exiles | Met EX-HEX 1521 | -10/Exiles | Met EX-DEC 1566 | -10/Exiles | Learned location of Zion (-6) 1619 | -10/Exiles | Discovered new exit (range 12) 1801 | -10/Exiles | Visited The Gauntlet 2131 | -10/Exiles | Met EX-BIN 2161 | -10/Exiles | Aligned with FarCom system 2163 | -10/Exiles | Given EX-Vault access code 2326 | -10/Exiles | Opened EX-Vault 2359 | -10/Exiles | Found Latent Energy Streamer 2393 | -10/Exiles | Warned to stay clear of 0b10 Research branches 2526 | -10/Exiles | Left Exiles lab with Latent Energy Streamer 2526 | -10/Exiles | Entered Mines 2527 | -9/Mines | Assembled infested the area 2532 | -9/Mines | Assisted by a Guerilla fighting off Assembled 2552 | -9/Mines | Core integrity fell below 50% 2557 | -9/Mines | Core integrity fell below 20% 2560 | -9/Mines | Destroyed by D-53 Grenadier with Mini Grenade Launcher Last Messages --------------- K-01 Serf collects debris. EF-IR9(h): "I'll hold them off! Go on ahead or try to find another way!" HV Slug penetrates C-30 ARC. C-30 ARC suffers critical hit (Destroy). C-30 ARC knocked back. C-30 ARC bursts open, deploying its payload. D-53 Grenadier unfolds itself. EF-IR9(h) destroyed. Core Extractor disabled. K-01 Serf collects debris. Lgt. Nuclear Core destroyed. K-01 Serf destroyed. The unstable cave ceiling collapses. Lgt. Treads destroyed. Core Extractor disabled. K-01 Serf collects debris. The unstable cave ceiling collapses. U-05 Engineer builds a Wall. [Achievement: Back For More] Map ----- +----------------------------------------------------+ | ?????????????????????????????????????????????????? | | ?????????????????????????????????????????????????? | | ?????????????????????????????????????????????????? | | ?????????????????????????????????????????????????? | | ?????????????????????????????????????????????????? | | ?????????????????????????????????????????????????? | | ?????????????????????????????????????????????????? | | ?????????????????????????????????????????????????? | | ?????????????????????????????????????????????????? | | ?????????????????????????????????????????????????? | | ???????????????????????# ????????????????????????? | | ??????????????????????## ????????ss??????????????? | | ????????????????? ##### ##??????????????????????? | | ??????????????? #?????????????????????? | | ??????????????? ?????????????????????? | | ??????????????? k % u??#??????????????????? | | ???????????????? #? #??????????????????? | | ????????????????? ##?#??????????????????? | | ????????????????### d # ???????????????????? | | ??????????????? ? d ##???????????????????? | | ?????????????? % ##??????????????????? | | ????????????? """ """ = #??????????????????? | | ???????????? """ """ #??????????????????? | | ???????????# """ """ #??????????????????? | | ???????????# #??????????????????? | | ???????????# """ """ @ #??????????????????? | | ???????????# """ """ #??????????????????? | | ???????????# """ """ #??????????????????? | | ???????????# ##??????????????????? | | ???????????# """ " " ##???????????????????? | | ???????????# """ """ #????????????????????? | | ???????????# """ """ #????????????????????? | | ???????????# #????????????????????? | | ???????????# """ """ """ #????????????????????? | | ???????????# """ """ """ #????????????????????? | | ???????????# """ """ """ #????????????????????? | | ???????????# #????????????????????? | | ??????????????###############????????????????????? | | ?????????????????????????????????????????????????? | | ?????????????????????????????????????????????????? | | ?????????????????????????????????????????????????? | | ?????????????????????????????????????????????????? | | ?????????????????????????????????????????????????? | | ?????????????????????????????????????????????????? | | ?????????????????????????????????????????????????? | | ?????????????????????????????????????????????????? | | ?????????????????????????????????????????????????? | | ?????????????????????????????????????????????????? | | ?????????????????????????????????????????????????? | | ?????????????????????????????????????????????????? | +----------------------------------------------------+ Best States ------------- Heat Dissipation 25 Energy Generation 14 Energy Capacity 250 Matter Stores 300 Matter Capacity 300 Sight Range 16 Robot Scan Range 14 Terrain Scan Density 10 Evasion (%) 40 Recoil Reduction 2 Item Schematics ----------------- Lgt. Treads | -10/Materials | Hacked Robot Schematics ------------------ None Fabricated ------------ Nothing Alien Tech Used ----------------- None Achievements -------------- Back For More Challenges ------------ None Game ------ Seed PointArchitectWings Manual? 0 Play Time 00:21:09 Cumulative 45.1 hours Start 2024.11.20 @ 13:15:42 End 2024.11.20 @ 13:36:00 Sessions 1 Manual Loads 0 Difficulty Rogue Special Mode None Game No. 50 Rogue 6 Adventurer 44 Explorer 0 Win Type - Total 0 Types 0/0/0/0/0/0/0/0/0 Lore% 17 Gallery% 41 Achievement% 30 Wizard Run 0 Options --------- Layout 1 ASCII 0 Keyboard 1 Movement Vi Keybinds 0 Fullscreen 1 Font 24/Terminus Map View 50x40 Zoom Use 0% Tactical HUD 0 Map Filters NONE Filters NONE Steam 1 RUN: d6edabdb-f4bd-4a40-b128-7dccd87edaf9